Cogmind - Beta 11.1 @@@ ROGUE MODE // 2022.06.20 @ 12:12:09 Player: ChromeKnight Result: Self-destructed Performance ------------- Evolutions (8) 4000 Regions Visited (15) 3000 Robots Destroyed (155) 775 Value Destroyed (6291) 6291 Prototype IDs (34) 680 Alien Tech Used (0) 0 Bonus (264) 264 TOTAL SCORE: 15010 Bonus ------- High Alert Combat Kills 12 Aligned with FarCom 300 Friendly Fire -48 Cogmind --------- Core Integrity 1329/1450 Matter 104/300 Energy 316/1600 System Corruption 4% Temperature Cool (1) Movement Flying (40) Location -2/Research Parts ------- > --- POWER (2) -------- (None) > --- PROPULSION (3) --- Xenon Bombardment Thruster > --- UTILITY (14) ----- Superbattery Experimental Optical Array Advanced Sensor Array Advanced Signal Interpreter Advanced Targeting Computer Improved Target Analyzer Advanced Target Analyzer Core Analyzer Graphene Brace Improved Hacking Suite > --- WEAPON (4) ------- (None) > --- INVENTORY (5) ---- Matter Compressor (0) Improved Weapon Cycler Hardened Medium Armor Plating Force Field Compact Mass Driver Peak State ------------ > --- POWER ------------ Micro Antimatter Reactor > --- PROPULSION ------- Impulse Thruster Array > --- UTILITY ---------- Experimental Cooling System Medium Storage Unit Advanced Weight Redist. System Experimental Optical Array Advanced Sensor Array Advanced Signal Interpreter Advanced Targeting Computer Improved Target Analyzer Improved Target Analyzer Core Analyzer Reaction Control System Improved Cloaking Device Graphene Brace Improved Hacking Suite > --- WEAPON ----------- Compact Mass Driver > --- INVENTORY -------- Xenon Bombardment Thruster Xenon Bombardment Thruster Q-thruster Superbattery Matter Compressor Hardened Medium Armor Plating Improved Medium Armor Plating Force Field Point Defense Array [Rating: 107] Favorites ----------- Power Ion Engine Engine Ion Engine Power Core Micro Nuclear Core Reactor Micro Antimatter Reactor Propulsion Armored Huge Wheel Treads Light Treads Wheel Armored Huge Wheel Flight Unit Xenon Bombardment Thruster Utility Medium Storage Unit Device Improved Cooling System Storage Medium Storage Unit Processor Advanced Targeting Computer Hackware System Shield Protection Improved Weapon Shielding Weapon XL Autogun Subcomponent Energy Gun Small Laser Energy Cannon Guided Plasma Cannon Ballistic Gun XL Autogun Subcomponent Ballistic Cannon Hypervelocity Mass Driver Build | -11 -10 -10 -10 -9 -8 -7 -6 -6 -6 -5 -5 -4 -3 -3 -2 ------- Run | Scr Mat Min Exi Min Mat Fac Fac Was Fac Fac Ext Fac Res Arm Res Slots Evolved 16 | . . . . . 4 2 2 . . 2 . 2 2 . 2 Power 1 | . . . . . . . . . . . . . . . 1 Propulsion 1 | . . . . . . . . . . . . . . . 1 Utility 12 | . . . . . 4 . 2 . . 2 . 2 2 . . Weapon 2 | . . . . . . 2 . . . . . . . . . Parts Attached 150 | 6 4 3 5 . 17 12 4 2 12 8 16 20 25 6 10 Power 14 | 1 1 . . . 3 1 . . 1 . 1 2 3 . 1 Engine 2 | 1 1 . . . . . . . . . . . . . . Core 7 | . . . . . 3 1 . . 1 . 1 1 . . . Reactor 5 | . . . . . . . . . . . . 1 3 . 1 Propulsion 19 | 2 1 3 1 . 1 2 . . 1 . 1 . 4 2 1 Treads 5 | 1 . 2 1 . 1 . . . . . . . . . . Leg . | . . . . . . . . . . . . . . . . Wheel 7 | 1 1 1 . . . 2 . . 1 . 1 . . . . Hover . | . . . . . . . . . . . . . . . . Flight 7 | . . . . . . . . . . . . . 4 2 1 Utility 81 | 1 1 . 2 . 8 3 4 2 10 4 12 13 14 2 5 Device 36 | . 1 . . . 1 1 2 2 2 3 2 10 9 2 1 Storage 5 | 1 . . 1 . . . . . . 1 . 1 . . 1 Processor 19 | . . . 1 . 3 1 . . 3 . 4 1 5 . 1 Hackware 3 | . . . . . 2 . . . 1 . . . . . . Protection 18 | . . . . . 2 1 2 . 4 . 6 1 . . 2 Artifact . | . . . . . . . . . . . . . . . . Weapon 36 | 2 1 . 2 . 5 6 . . . 4 2 5 4 2 3 Energy Gun 4 | 1 1 . . . 2 . . . . . . . . . . Energy Cannon 2 | . . . 1 . . . . . . . 1 . . . . Ballistic Gun 20 | 1 . . 1 . 3 6 . . . 4 1 2 1 . 1 Ballistic Cannon 10 | . . . . . . . . . . . . 3 3 2 2 Launcher . | . . . . . . . . . . . . . . . . Special Weapon . | . . . . . . . . . . . . . . . . Impact Weapon . | . . . . . . . . . . . . . . . . Slashing Weapon . | . . . . . . . . . . . . . . . . Piercing Weapon . | . . . . . . . . . . . . . . . . Special Melee Weapon . | . . . . . . . . . . . . . . . . Unidentified Prototypes 11 | . . . . . 3 1 . . . 1 . 3 3 . . Parts Lost 24 | . 1 . . . 2 . . . . 1 1 3 8 6 2 Power 1 | . . . . . . . . . . . . 1 . . . Propulsion 4 | . . . . . . . . . . . . . 1 1 2 Utility 16 | . . . . . 2 . . . . 1 1 1 6 5 . Weapon 3 | . 1 . . . . . . . . . . 1 1 . . Highest Loss Streak 6 | . 1 . . . 1 . . . . 1 1 1 6 6 2 To Critical Strikes . | . . . . . . . . . . . . . . . . Average Slot Usage (%) 82 | . 84 100 99 100 96 81 71 73 70 81 88 93 69 70 55 Engine 2 | . 14 14 14 14 3 . . . . . . . . . . Core 4 | . . . . . 5 7 6 6 6 5 5 3 1 . . Treads 5 | . 14 14 21 28 18 2 . . . . . . . . . Wheel 4 | . 14 14 6 . . 5 6 6 5 5 4 5 . . . Device 11 | . . 14 6 . 5 7 13 13 12 17 15 17 19 19 9 Storage 7 | . 14 14 14 14 9 7 6 6 6 5 5 5 4 4 4 Processor 12 | . . . 7 14 18 11 6 6 6 10 11 21 25 32 22 Hackware 9 | . . . . . 9 15 13 13 13 11 11 10 4 4 4 Protection 5 | . . . . . 8 3 11 13 10 5 6 7 . . 1 Energy Gun 1 | . 13 14 6 . 3 . . . . . . . . . . Ballistic Gun 12 | . 14 14 14 14 12 18 6 6 6 17 23 16 . . . Naked Turns . | . . . . . . . . . . . . . . . . Heaviest Build 80 | 14 14 14 28 28 28 37 40 40 53 58 56 80 80 22 44 Greatest Support 40 | 20 10 10 40 40 40 40 28 28 28 28 28 28 28 25 20 Greatest Overweight (x) 24 | 1 1 1 1 . . 1 1 1 1 2 1 2 24 . 7 Average Overweight (x) . | . 1 1 . . . . 1 1 1 1 1 1 . . 1 Largest Inventory Capacity 10 | 8 8 8 10 10 10 10 10 10 10 10 10 10 10 10 10 Average Capacity 9 | 6 8 8 9 10 10 10 10 10 10 10 10 10 10 10 9 Most Carried 10 | 2 8 8 10 10 10 10 10 10 10 10 10 10 10 10 9 Average Carried 9 | 1 5 7 8 10 9 9 9 9 10 9 9 9 9 9 7 Final Capacity 10 | 8 8 8 10 10 10 10 10 10 10 10 10 10 10 10 5 Final Carried 10 | 2 8 8 10 10 10 10 10 10 10 10 10 9 10 9 5 Class Distribution -------------------- 46% | Hacker-Gunner 27% | Mutant 13% | Hacker-Tank 5% | Scavenger-Mutant Dominant Class ---------------- Mutant | -10/Materials Mutant | -10/Mines Mutant | -10/Exiles Mutant | -9/Mines Mutant | -8/Materials Hacker-Gunner | -7/Factory Hacker-Tank | -6/Factory Hacker-Tank | -6/Waste Hacker-Tank | -6/Factory Hacker-Gunner | -5/Factory Hacker-Gunner | -5/Extension Hacker-Gunner | -4/Factory Scavenger-Mutant | -3/Research Scavenger-Scout | -3/Armory Mutant | -2/Research Resources | -11 -10 -10 -10 -9 -8 -7 -6 -6 -6 -5 -5 -4 -3 -3 -2 ----------- Run | Scr Mat Min Exi Min Mat Fac Fac Was Fac Fac Ext Fac Res Arm Res Matter Collected 7315 | 200 155 97 . 69 341 1314 565 692 1242 202 1012 552 674 . 200 Remotely . | . . . . . . . . . . . . . . . . Salvage Created 9074 | . 279 118 . . 577 1322 778 1573 1281 317 1564 799 338 . 128 Parts 440 | . 18 8 . . 31 83 43 31 65 11 74 49 16 . 11 Haulers Intercepted 8 | . . . . . 2 3 1 . . . 2 . . . . Recyclers Shooed 10 | . 1 1 . . 2 1 . . 1 1 2 1 . . . Parts Field Recycled . | . . . . . . . . . . . . . . . . Retrieved Matter . | . . . . . . . . . . . . . . . . Parts Self-Destructed . | . . . . . . . . . . . . . . . . Prevented . | . . . . . . . . . . . . . . . . Kills | -11 -10 -10 -10 -9 -8 -7 -6 -6 -6 -5 -5 -4 -3 -3 -2 ------- Run | Scr Mat Min Exi Min Mat Fac Fac Was Fac Fac Ext Fac Res Arm Res Combat Hostiles Destroyed 113 | . 6 2 . 1 6 15 9 6 22 3 18 14 8 . 3 Guns 97 | . 6 2 . . 5 15 9 6 22 3 18 11 . . . Cannons 16 | . . . . 1 1 . . . . . . 3 8 . 3 Classes Destroyed 16 | . 2 1 . . 5 4 2 1 . . 1 . . . . Worker 5 | . . . . . 1 2 . . . . 2 . . . . Builder 3 | . . . . . . 2 . . . . . 1 . . . Tunneler 3 | . . 1 . . 1 . 1 . . . . . . . . Hauler 8 | . . . . . 2 3 1 . . . 2 . . . . Recycler 7 | . . . . . 1 2 . . 1 1 1 . 1 . . Operator 5 | . 1 . . . . 2 1 . 1 . . . . . . Watcher 11 | . . . . . . 5 1 . 2 . 2 1 . . . Swarmer 25 | . . . . . . 4 . . 7 . 4 5 5 . . Grunt 33 | . 6 2 . . 2 6 3 . 9 . 5 . . . . Brawler 3 | . . . . . 1 1 . . . . 1 . . . . Duelist 1 | . . . . . . . 1 . . . . . . . . Sentry 14 | . . . . . 3 2 2 . 2 1 3 1 . . . Hunter 12 | . . . . . . . 1 . 2 . 3 6 . . . Programmer 16 | . . . . . . 2 2 . 2 2 . 2 3 . 3 Behemoth 2 | . . . . . . . . . . . 2 . . . . Compactor 6 | . . . . . . . . 6 . . . . . . . Best Kill Streak 8 | . 2 1 . 1 3 4 4 4 4 2 8 5 3 . 2 Combat Bots Only 8 | . 2 1 . 1 3 4 4 4 4 2 8 5 3 . 2 Max Kills in Single Turn 2 | . 1 1 . 1 1 2 1 1 1 1 2 2 1 . 1 Gunslinging 1 | . . . . . . . . . . . 1 . . . . Exploded . | . . . . . . . . . . . . . . . . Melee . | . . . . . . . . . . . . . . . . Uniques/NPCs Destroyed 1 | . . . . 1 . . . . . . . . . . . YI-UF0 (-9/Mines) Combat | -11 -10 -10 -10 -9 -8 -7 -6 -6 -6 -5 -5 -4 -3 -3 -2 -------- Run | Scr Mat Min Exi Min Mat Fac Fac Was Fac Fac Ext Fac Res Arm Res Damage Taken 7010 | . 262 107 . . 313 543 283 . 483 233 1329 701 1452 916 388 Core 1365 | . 55 11 . . 56 96 42 . 28 . 116 116 300 424 121 Absorbed by Shields 214 | . . . . . . . . . . . . . . . 214 Redirected to Shielding 256 | . . . . . 5 . 55 . 91 . . 105 . . . Regen/Repaired (Parts) 177 | . . . . . . . . . 113 . 64 . . . . Core Remaining (%) 82 | 100 . . . 73 89 86 . . 91 . 88 89 . 44 . Volleys Fired 413 | . 28 10 . 2 33 64 29 39 41 8 74 31 28 4 22 Largest 4 | . 2 2 . 1 2 4 1 1 1 4 4 4 4 1 1 Hottest 218 | . 60 60 . 120 120 100 60 60 60 80 120 218 218 66 66 Shots Fired 924 | . 44 21 . 3 66 166 29 38 46 32 287 103 61 4 24 Gun 829 | . 44 21 . 1 65 166 29 38 46 32 285 88 10 . 4 Cannon 95 | . . . . 2 1 . . . . . 2 15 51 4 20 Launcher . | . . . . . . . . . . . . . . . . Special . | . . . . . . . . . . . . . . . . Kinetic 880 | . 28 11 . 1 52 166 29 38 46 32 285 103 61 4 24 Thermal 33 | . 5 10 . 2 14 . . . . . 2 . . . . Explosive . | . . . . . . . . . . . . . . . . Electromagnetic 11 | . 11 . . . . . . . . . . . . . . Robot Hit Streak 17 | . 15 5 . . 12 10 9 15 14 8 13 5 17 . 9 Robot Miss Streak 10 | . 2 1 . 1 4 5 4 3 4 2 4 5 10 . 2 Penetration Max 1 | . . . . . . . . . . . . . 1 . . Secondary Targets 8 | . . . . . . . . . . 1 4 3 . . . Max Gunslinging Chain 1 | . . . . . . . . . . 1 1 1 . . . Shots Hit Robots 604 | . 32 13 . . 49 101 28 38 43 18 195 46 28 . 13 Core Hits 306 | . 13 4 . 1 20 52 25 23 45 9 65 28 16 . 5 Critical Kills 8 | . . . . . . . . . . . . 3 5 . . Critical Parts Destroyed 10 | . . . . . . 1 . . . . . 2 6 . 1 Critical Strikes 23 | . . . . . 1 1 . . . . . 5 13 . 3 Burn 1 | . . . . . 1 . . . . . . . . . . Destroy 18 | . . . . . . 1 . . . . . 5 11 . 1 Blast 4 | . . . . . . . . . . . . . 2 . 2 Melee Attacks . | . . . . . . . . . . . . . . . . Impact . | . . . . . . . . . . . . . . . . Slashing . | . . . . . . . . . . . . . . . . Piercing . | . . . . . . . . . . . . . . . . Sneak Attacks . | . . . . . . . . . . . . . . . . Combat Hostiles . | . . . . . . . . . . . . . . . . Follow-up Attacks . | . . . . . . . . . . . . . . . . Damage Inflicted 19433 | . 424 157 . 76 865 2990 1517 3150 2417 535 4762 1106 956 . 478 Guns 17945 | . 424 157 . . 827 2990 1517 3150 2417 535 4762 1048 96 . 22 Cannons 1488 | . . . . 76 38 . . . . . . 58 860 . 456 Explosions . | . . . . . . . . . . . . . . . . Melee . | . . . . . . . . . . . . . . . . Ramming . | . . . . . . . . . . . . . . . . Kinetic 18873 | . 252 90 . . 620 2990 1517 3150 2417 535 4762 1106 956 . 478 Thermal 424 | . 36 67 . 76 245 . . . . . . . . . . Explosive . | . . . . . . . . . . . . . . . . Electromagnetic 136 | . 136 . . . . . . . . . . . . . . Impact . | . . . . . . . . . . . . . . . . Slashing . | . . . . . . . . . . . . . . . . Piercing . | . . . . . . . . . . . . . . . . Highest Corruption 22 | . 1 1 1 1 4 . 1 18 22 3 3 2 5 7 4 Average Corruption 6 | . 1 1 1 1 4 . 1 10 20 2 3 1 4 5 3 Corruption Purged . | . . . . . . . . . . . . . . . . Corruption Blocked . | . . . . . . . . . . . . . . . . Effects 151 | . . 5 2 5 15 . 4 7 69 8 16 5 6 4 5 Message Errors 31 | . . . 1 1 5 . 1 2 15 1 1 1 2 1 . Matter Fused 38 | . . 1 . 2 2 . 2 1 18 2 6 . 1 1 2 Heat Flow Errors 21 | . . 2 1 1 1 . . . 12 2 1 . 1 . . Energy Discharges 17 | . . . . . 1 . 1 1 5 2 1 3 1 2 . Parts Rejected 2 | . . . . . 1 . . 1 . . . . . . . Data Loss (minor) 17 | . . 1 . . 1 . . 1 9 1 3 . . . 1 Data Loss (major) 5 | . . . . . 3 . . . 1 . . 1 . . . Misfires 10 | . . 1 . 1 1 . . . 5 . . . . . 2 Alerts 6 | . . . . . . . . . 4 . 1 . 1 . . Weapon Failures 4 | . . . . . . . . 1 . . 3 . . . . Overload Shots . | . . . . . . . . . . . . . . . . Overflow Damage 118 | . . . . . . . . . . . . . 46 . 72 Projectiles 118 | . . . . . . . . . . . . . 46 . 72 Explosions . | . . . . . . . . . . . . . . . . Melee . | . . . . . . . . . . . . . . . . Knockbacks 22 | . . . . . . . . . . . . . 15 . 7 Impact . | . . . . . . . . . . . . . . . . Kinetic 18 | . . . . . . . . . . . . . 12 . 6 Secondary 4 | . . . . . . . . . . . . . 3 . 1 Self-Inflicted Damage . | . . . . . . . . . . . . . . . . Shots . | . . . . . . . . . . . . . . . . Rammed . | . . . . . . . . . . . . . . . . Targets Rammed . | . . . . . . . . . . . . . . . . Kicked . | . . . . . . . . . . . . . . . . Crushed . | . . . . . . . . . . . . . . . . Highest Temperature 232 | . 63 137 220 190 84 112 65 120 232 150 148 48 84 . . Average Temperature 40 | . 29 36 120 91 13 40 21 38 57 47 42 20 17 . . Received Heat Transfer 828 | . 141 63 . . 162 132 21 . 99 . 183 9 . 18 . Siege Activations . | . . . . . . . . . . . . . . . . Robots Corrupted . | . . . . . . . . . . . . . . . . Combat Hostiles . | . . . . . . . . . . . . . . . . Parts Fried . | . . . . . . . . . . . . . . . . Impact Corruptions 1 | . . . . . . . . . . . . . 1 . . Robots Melted . | . . . . . . . . . . . . . . . . Combat Hostiles . | . . . . . . . . . . . . . . . . Parts Melted . | . . . . . . . . . . . . . . . . Heat Transferred 983 | . 75 150 . 160 598 . . . . . . . . . . Parts Sabotaged . | . . . . . . . . . . . . . . . . Parts Stolen . | . . . . . . . . . . . . . . . . Parts Stripped . | . . . . . . . . . . . . . . . . Power Chain Reactions . | . . . . . . . . . . . . . . . . Missiles Intercepted . | . . . . . . . . . . . . . . . . Alert | -11 -10 -10 -10 -9 -8 -7 -6 -6 -6 -5 -5 -4 -3 -3 -2 ------- Run | Scr Mat Min Exi Min Mat Fac Fac Was Fac Fac Ext Fac Res Arm Res Peak Influence 420 | . 145 70 . . 82 314 356 124 420 205 300 206 356 362 221 Initial 205 | . . . . . . 35 112 121 72 205 55 147 90 121 168 Average 132 | . 69 23 . . 52 127 210 114 235 161 114 123 201 220 145 Maximum Alert Level 2 | . . . . . . 1 1 . 2 1 1 1 1 1 1 Low Security (%) 75 | 100 100 100 . 100 100 83 52 100 33 33 86 79 58 54 95 Level 1 24 | . . . . . . 16 47 . 64 66 13 20 41 45 4 Level 2 . | . . . . . . . . . 1 . . . . . . Level 3 . | . . . . . . . . . . . . . . . . Level 4 . | . . . . . . . . . . . . . . . . Level 5 . | . . . . . . . . . . . . . . . . High Security . | . . . . . . . . . . . . . . . . Max Security . | . . . . . . . . . . . . . . . . Squads Dispatched 23 | . 1 . . . 1 4 2 . 5 1 1 2 2 2 2 Investigation 6 | . . . . . . . . . 3 . 1 . 1 1 . Extermination 8 | . . . . . . 2 1 . 1 1 . 1 1 . 1 Reinforcement 9 | . 1 . . . 1 2 1 . 1 . . 1 . 1 1 Assault . | . . . . . . . . . . . . . . . . Garrison . | . . . . . . . . . . . . . . . . Intercept . | . . . . . . . . . . . . . . . . Searches Triggered . | . . . . . . . . . . . . . . . . Construction Impeded . | . . . . . . . . . . . . . . . . Haulers Reinforced . | . . . . . . . . . . . . . . . . Active Scanning Responses . | . . . . . . . . . . . . . . . . Cargo Convoy Interrupts . | . . . . . . . . . . . . . . . . Stealth | -11 -10 -10 -10 -9 -8 -7 -6 -6 -6 -5 -5 -4 -3 -3 -2 --------- Run | Scr Mat Min Exi Min Mat Fac Fac Was Fac Fac Ext Fac Res Arm Res Distress Signals 9 | . . 1 . . 2 1 . . 1 . . 1 1 2 . Communications Jammed 5 | . . . . . . . . . 1 . 4 . . . . Distress Signals 4 | . . . . . . . . . . . 4 . . . . Times Spotted 188 | . 9 3 . 1 11 24 11 6 24 4 23 15 19 27 11 Peak Tracking Total 15 | . 2 2 . 1 5 4 4 5 3 3 7 5 6 15 6 Tactical Retreats 18 | . . 1 . . 1 1 . . 2 . 2 . 7 3 1 Traps | -11 -10 -10 -10 -9 -8 -7 -6 -6 -6 -5 -5 -4 -3 -3 -2 ------- Run | Scr Mat Min Exi Min Mat Fac Fac Was Fac Fac Ext Fac Res Arm Res Traps Triggered 18 | . 1 . . . . 3 1 . 6 3 . 1 1 2 . Indirectly . | . . . . . . . . . . . . . . . . Trap Hack Attempts . | . . . . . . . . . . . . . . . . Triggered . | . . . . . . . . . . . . . . . . Disarmed . | . . . . . . . . . . . . . . . . Reprogrammed . | . . . . . . . . . . . . . . . . Reused . | . . . . . . . . . . . . . . . . Traps Extracted . | . . . . . . . . . . . . . . . . Installed . | . . . . . . . . . . . . . . . . Triggered . | . . . . . . . . . . . . . . . . Machines | -11 -10 -10 -10 -9 -8 -7 -6 -6 -6 -5 -5 -4 -3 -3 -2 ---------- Run | Scr Mat Min Exi Min Mat Fac Fac Was Fac Fac Ext Fac Res Arm Res Machines Disabled 10 | . 1 . . . . 1 4 . 3 . . . . 1 . Max in Single Turn 1 | . 1 . . . . 1 1 . 1 . . . . 1 . Garrison Access 6 | . . . . . 1 2 1 . . 1 . . . . 1 Machines Sabotaged . | . . . . . . . . . . . . . . . . Garrisons Compromised . | . . . . . . . . . . . . . . . . Overloaded Fab Kills . | . . . . . . . . . . . . . . . . Hacking | -11 -10 -10 -10 -9 -8 -7 -6 -6 -6 -5 -5 -4 -3 -3 -2 --------- Run | Scr Mat Min Exi Min Mat Fac Fac Was Fac Fac Ext Fac Res Arm Res Machines Accessed 41 | . 1 . 1 . 3 6 5 . 9 2 7 4 2 . 1 Terminals 28 | . 1 . . . 2 4 4 . 5 1 6 3 2 . . Fabricators 2 | . . . . . . . . . 1 . . 1 . . . Repair Stations 3 | . . . . . . . . . 2 . 1 . . . . Recycling Units . | . . . . . . . . . . . . . . . . Scanalyzers . | . . . . . . . . . . . . . . . . Garrison Access 7 | . . . . . 1 2 1 . 1 1 . . . . 1 Total Hacks 89 | . 2 . 1 . 6 17 11 . 19 5 15 10 2 . 1 Successful 46 | . 2 . 1 . 5 8 7 . 9 2 6 5 . . 1 Failed 43 | . . . . . 1 9 4 . 10 3 9 5 2 . . Catastrophic 9 | . . . . . . 1 1 . 5 . 1 . 1 . . Database Lockouts . | . . . . . . . . . . . . . . . . Manual 50 | . 2 . 1 . 5 13 7 . 7 4 1 8 2 . . Terminals 60 | . 2 . . . 5 13 8 . 8 4 10 8 2 . . Fabricators 5 | . . . . . . . . . 3 . . 2 . . . Repair Stations 11 | . . . . . . . . . 6 . 5 . . . . Recycling Units . | . . . . . . . . . . . . . . . . Scanalyzers . | . . . . . . . . . . . . . . . . Garrison Access 12 | . . . . . 1 4 3 . 2 1 . . . . 1 Terminal Hacks 7 | . . . 1 . 1 1 1 . . . 3 . . . . Robot Analysis 2 | . . . . . . . 1 . . . 1 . . . . Open Door 2 | . . . . . . . . . . . 2 . . . . Level Access Points 1 | . . . . . . 1 . . . . . . . . . Branch Access Points 1 | . . . . . 1 . . . . . . . . . . EX-Prototype ID Bank 1 | . . . 1 . . . . . . . . . . . . Fabricator Hacks 2 | . . . . . . . . . 1 . . 1 . . . Build 2 | . . . . . . . . . 1 . . 1 . . . Repair Station Hacks 6 | . . . . . . . . . 4 . 2 . . . . Scan Component 3 | . . . . . . . . . 2 . 1 . . . . Repair 3 | . . . . . . . . . 2 . 1 . . . . Recycling Unit Hacks . | . . . . . . . . . . . . . . . . Scanalyzer . | . . . . . . . . . . . . . . . . Garrison Access Hacks 6 | . . . . . 1 2 1 . . 1 . . . . 1 Seal Access 6 | . . . . . 1 2 1 . . 1 . . . . 1 Unauthorized Hacks 25 | . 2 . . . 3 5 5 . 4 1 1 4 . . . Terminals 25 | . 2 . . . 3 5 5 . 4 1 1 4 . . . Track 2 | . . . . . . . 1 . . . . 1 . . . Botnet 18 | . 1 . . . 2 4 3 . 4 1 1 2 . . . Operators 5 | . 1 . . . 1 1 1 . . . . 1 . . . Fabricators . | . . . . . . . . . . . . . . . . Repair Stations . | . . . . . . . . . . . . . . . . Recycling Units . | . . . . . . . . . . . . . . . . Scanalyzers . | . . . . . . . . . . . . . . . . Garrison Access . | . . . . . . . . . . . . . . . . Data Cores Recovered 1 | . . . . . . . . . 1 . . . . . . Used 1 | . . . . . . . . . 1 . . . . . . Hacking Detections 24 | . . . . . 2 2 4 . 7 1 4 2 2 . . Full Trace Events 4 | . . . . . . . . . 3 . 1 . . . . Feedback Events . | . . . . . . . . . . . . . . . . Feedback Blocked . | . . . . . . . . . . . . . . . . Robot Schematics Acquired . | . . . . . . . . . . . . . . . . Robots Built 3 | . . . . . . . . . 2 . . 1 . . . Authchips . | . . . . . . . . . . . . . . . . Time 254 | . . . . . . . . . 67 . . 187 . . . Total Robot Build Rating 15 | . . . . . . . . . 8 . . 7 . . . Part Schematics Acquired . | . . . . . . . . . . . . . . . . Parts Built . | . . . . . . . . . . . . . . . . Authchips . | . . . . . . . . . . . . . . . . Time . | . . . . . . . . . . . . . . . . Total Part Build Rating . | . . . . . . . . . . . . . . . . Parts Repaired 3 | . . . . . . . . . 2 . 1 . . . . Time 88 | . . . . . . . . . 66 . 22 . . . . Parts Recycled . | . . . . . . . . . . . . . . . . Recycled Matter . | . . . . . . . . . . . . . . . . Retrieved Matter . | . . . . . . . . . . . . . . . . Retrieved Components . | . . . . . . . . . . . . . . . . Parts Scanalyzed . | . . . . . . . . . . . . . . . . Part Schematics Acquired . | . . . . . . . . . . . . . . . . Parts Damaged . | . . . . . . . . . . . . . . . . Bothacking | -11 -10 -10 -10 -9 -8 -7 -6 -6 -6 -5 -5 -4 -3 -3 -2 ------------ Run | Scr Mat Min Exi Min Mat Fac Fac Was Fac Fac Ext Fac Res Arm Res Used RIF Installer . | . . . . . . . . . . . . . . . . Robots Hacked . | . . . . . . . . . . . . . . . . Non-combat . | . . . . . . . . . . . . . . . . Combat . | . . . . . . . . . . . . . . . . Robot Hacks Applied . | . . . . . . . . . . . . . . . . Relay Couplers Released 3 | . . . . . . . . . 3 . . . . . . Programmers 3 | . . . . . . . . . 3 . . . . . . Fabnet Peak Effective % . | . . . . . . . . . . . . . . . . Robots Rewired 3 | . . . . . . . . . . . 3 . . . . Allies Hacked . | . . . . . . . . . . . . . . . . Hacks Repelled . | . . . . . . . . . . . . . . . . Allies | -11 -10 -10 -10 -9 -8 -7 -6 -6 -6 -5 -5 -4 -3 -3 -2 -------- Run | Scr Mat Min Exi Min Mat Fac Fac Was Fac Fac Ext Fac Res Arm Res Total Allies 8 | . . . . . . . . 1 2 . 4 1 . . . Largest Group 4 | . . . . . . . . 1 2 . 4 1 . . . Highest-Rated Group 107 | . . . . . . . . 31 64 . 107 105 . . . Highest-Rated Ally 105 | . . . . . . . . 31 32 . 31 105 . . . Total Orders 1 | . . . . . . . . . . . . 1 . . . COLLECT 1 | . . . . . . . . . . . . 1 . . . Ally Attacks 28 | . . . . . . . . 16 7 . 5 . . . . Total Damage 881 | . . . . . . . . 248 274 . 77 282 . . . Kills 1 | . . . . . . . . . 1 . . . . . . Allies Corrupted . | . . . . . . . . . . . . . . . . Allies Melted 2 | . . . . . . . . . 2 . . . . . . Intel | -11 -10 -10 -10 -9 -8 -7 -6 -6 -6 -5 -5 -4 -3 -3 -2 ------- Run | Scr Mat Min Exi Min Mat Fac Fac Was Fac Fac Ext Fac Res Arm Res Robot Analysis Total 2 | . . . . . . . 1 . . . 1 . . . . Derelict Logs Recovered . | . . . . . . . . . . . . . . . . Drone Launches . | . . . . . . . . . . . . . . . . Drone Recoveries . | . . . . . . . . . . . . . . . . Exploration | -11 -10 -10 -10 -9 -8 -7 -6 -6 -6 -5 -5 -4 -3 -3 -2 ------------- Run | Scr Mat Min Exi Min Mat Fac Fac Was Fac Fac Ext Fac Res Arm Res Turns Passed 10764 | 45 423 478 346 429 1093 1610 611 169 1372 599 1163 1132 561 175 558 Spaces Moved 6988 | 39 193 305 276 180 497 1091 442 110 1012 423 478 693 741 310 198 Core 41 | 3 . . . . . . . . . . . . 1 . 37 Treads 961 | 2 . . 115 180 497 167 . . . . . . . . . Legs . | . . . . . . . . . . . . . . . . Wheels 4815 | 34 193 305 161 . . 924 442 110 1012 423 478 693 40 . . Hover . | . . . . . . . . . . . . . . . . Flight 1171 | . . . . . . . . . . . . . 700 310 161 Fastest Speed 34 | 50 95 95 95 160 160 115 115 115 115 115 115 115 37 37 34 Average Speed 110 | 87 95 95 122 160 164 122 115 115 115 119 115 117 56 44 119 Slowest Speed 1250 | 160 95 95 160 160 165 165 115 115 115 130 115 130 1250 45 600 Overloaded Moves . | . . . . . . . . . . . . . . . . Propulsion Burnouts . | . . . . . . . . . . . . . . . . Robots Hopped 15 | . . . . . . . . . . . . . 9 5 1 Cave-ins Triggered . | . . . . . . . . . . . . . . . . Exploration Rate (%) 33 | 3 32 76 66 34 37 23 12 74 28 13 59 14 24 29 5 Regions Visited 15 Branch Regions 5 Pre-discovered Areas . | . . . . . . . . . . . . . . . . Known Exits Taken 6 | . . . . . . 1 . . 1 . 1 1 1 1 . Unknown Exits Taken 7 | 1 1 1 1 1 1 . . . . 1 . . . . . Scrap Searched 3 | . . 3 . . . . . . . . . . . . . Spaces Dug 12 | . . . . . . . . . . . 2 . 2 6 2 Terrain Destroyed 44 | . . . . . . 4 5 4 7 . 2 2 3 6 11 Melee . | . . . . . . . . . . . . . . . . Projectile 44 | . . . . . . 4 5 4 7 . 2 2 3 6 11 AOE . | . . . . . . . . . . . . . . . . Terrain Rammed . | . . . . . . . . . . . . . . . . Walls Destroyed . | . . . . . . . . . . . . . . . . Machines Disabled . | . . . . . . . . . . . . . . . . Actions | -11 -10 -10 -10 -9 -8 -7 -6 -6 -6 -5 -5 -4 -3 -3 -2 --------- Run | Scr Mat Min Exi Min Mat Fac Fac Was Fac Fac Ext Fac Res Arm Res Total 9726 | 46 388 477 287 319 724 1342 546 153 1221 508 1055 978 841 340 501 Wait 1939 | . 153 149 . 138 154 128 66 . 139 68 447 203 26 11 257 Move 6945 | 38 192 304 275 179 496 1090 442 109 1011 422 477 692 722 300 196 Hop 14 | . . . . . . . . . . . . . 9 4 1 Pick Up 79 | 2 8 5 2 . 9 17 2 1 1 1 7 13 8 1 2 Fast Attach 76 | 6 2 . 1 . 10 6 2 1 6 4 9 10 15 2 2 Attach 43 | . . . 3 . 5 4 1 . . 2 2 7 7 4 8 Detach 15 | . . . . . 1 . . . . . . . 5 2 7 Swap 31 | . 2 3 1 . 2 2 1 1 6 2 5 3 3 . . Drop 127 | . 3 6 5 . 14 23 3 2 9 1 15 19 18 3 6 Fire 413 | . 28 10 . 2 33 64 29 39 41 8 74 31 28 4 22 Melee . | . . . . . . . . . . . . . . . . Ram . | . . . . . . . . . . . . . . . . Kick . | . . . . . . . . . . . . . . . . Crush . | . . . . . . . . . . . . . . . . Escape Stasis 16 | . . . . . . 8 . . 8 . . . . . . Rewire 28 | . . . . . . . . . . . 19 . . 9 . Trap . | . . . . . . . . . . . . . . . . Miscellaneous . | . . . . . . . . . . . . . . . . Route ------- -11/Scrapyard -10/Materials -10/Mines (discovered 2 exits: [*Mat] / *Exi) -10/Exiles (discovered 2 exits: [*Min x2]) -9/Mines (discovered 2 exits: *Mat x2) -8/Materials -7/Factory (discovered 5 exits: *Fac x4 / [*Sto]) -6/Factory -6/Waste -6/Factory (discovered 2 exits: *Fac x2) -5/Factory (discovered 2 exits: *Fac / *Ext) -5/Extension (discovered 3 exits: *Fac x2 / [*Cet]) -4/Factory -3/Research (discovered 2 exits: *Res / *Arm) -3/Armory -2/Research History --------- Turn | Location | Event 26 | -11/Scrapyard | Discovered new exit (range 16) 46 | -11/Scrapyard | Entered Materials 311 | -10/Materials | Build established: Mutant 440 | -10/Materials | Discovered new exit (range 16) 469 | -10/Materials | Entered Mines 668 | -10/Mines | Assembled infested the area 879 | -10/Mines | Discovered new exit (range 10) 886 | -10/Mines | Joined a pair of Derelicts in attacking an 0b10 outpost 944 | -10/Mines | Deemed a non-threat by the Exiles lab entrance 944 | -10/Mines | Discovered new exit (range 5) 947 | -10/Mines | Entered Exiles 963 | -10/Exiles | Discovered new exit (range 15) 973 | -10/Exiles | Met 8R-AWN 987 | -10/Exiles | Met EX-HEX 1055 | -10/Exiles | Met EX-BIN 1069 | -10/Exiles | Aligned with FarCom system 1070 | -10/Exiles | Given EX-Vault access code 1098 | -10/Exiles | Opened EX-Vault 1117 | -10/Exiles | Found XL Autogun Array 1121 | -10/Exiles | Found Superbattery 1127 | -10/Exiles | Found Gui. Plasma Cannon 1165 | -10/Exiles | Warned to stay clear of 0b10 Research branches 1216 | -10/Exiles | Met EX-DEC 1280 | -10/Exiles | Discovered new exit (range 10) 1293 | -10/Exiles | Stole three prototypes: XL Autogun Array, Superbattery, Gui. Plasma Cannon 1293 | -10/Exiles | Entered Mines 1349 | -9/Mines | Discovered new exit (range 7) 1385 | -9/Mines | Destroyed YI-UF0 1443 | -9/Mines | Discovered new exit (range 8) 1722 | -9/Mines | Entered Materials 1722 | -8/Materials | Evolved 4 slots: Utility x4 2479 | -8/Materials | Discovered new exit (range 15) 2815 | -8/Materials | Entered Factory 2815 | -7/Factory | Evolved 2 slots: Weapon x2 2817 | -7/Factory | FarCom data flow suspended 3120 | -7/Factory | Build established: Hacker-Gunner 3883 | -7/Factory | Identified exit to Factory 4045 | -7/Factory | Discovered new exit (range 14) 4425 | -7/Factory | Entered another Factory area 4425 | -6/Factory | Evolved 2 slots: Utility x2 4690 | -6/Factory | Discovered new exit (range 15) 4884 | -6/Factory | Build established: Hacker-Tank 5036 | -6/Factory | Sucked down chute 5036 | -6/Factory | Entered Waste 5037 | -6/Waste | Met a frightened Derelict 5051 | -6/Waste | EMP discharged 5071 | -6/Waste | Spotted C-40 Crusher 5071 | -6/Waste | Spotted C-40 Crusher 5082 | -6/Waste | Destroyed C-40 Crusher 5085 | -6/Waste | Spotted C-40 Crusher 5097 | -6/Waste | Spotted C-40 Crusher 5097 | -6/Waste | Spotted C-40 Crusher 5097 | -6/Waste | Spotted C-40 Crusher 5101 | -6/Waste | Destroyed C-40 Crusher 5107 | -6/Waste | Destroyed C-40 Crusher 5115 | -6/Waste | Destroyed C-40 Crusher 5146 | -6/Waste | Destroyed C-40 Crusher 5147 | -6/Waste | Destroyed C-40 Crusher 5151 | -6/Waste | EMP discharged 5151 | -6/Waste | System corruption reached 10% 5188 | -6/Waste | Discovered new exit (range 15) 5205 | -6/Waste | Entered Factory 5834 | -6/Factory | Discovered new exit (range 15) 5851 | -6/Factory | Discovered new exit (range 9) 5928 | -6/Factory | Repaired Arm. Huge Wheel 6215 | -6/Factory | Fabricated Y-54 Guardian? 6334 | -6/Factory | Repaired Imp. Cooling System 6374 | -6/Factory | Build established: Hacker-Gunner 6565 | -6/Factory | Identified exit to Factory 6577 | -6/Factory | Entered another Factory area 6577 | -5/Factory | Evolved 2 slots: Utility x2 6996 | -5/Factory | Discovered new exit (range 16) 7031 | -5/Factory | Identified exit to Factory 7131 | -5/Factory | Discovered new exit (range 14) 7176 | -5/Factory | Entered Extension 7373 | -5/Extension | Rescued a captive Derelict 7821 | -5/Extension | Repaired Arm. Huge Wheel 7855 | -5/Extension | Spotted B-75 Beast 8059 | -5/Extension | Destroyed B-75 Beast 8067 | -5/Extension | Spotted B-75 Beast 8077 | -5/Extension | Destroyed B-75 Beast 8121 | -5/Extension | Discovered exit to Factory (range 3) 8126 | -5/Extension | Disrupted transfer network 8206 | -5/Extension | Destroyed 8 combat bots 8298 | -5/Extension | Discovered new exit (range 16) 8299 | -5/Extension | Discovered exit to Factory (range 15) 8339 | -5/Extension | Entered Factory 8339 | -4/Factory | Evolved 2 slots: Utility x2 9031 | -4/Factory | Discovered new exit (range 10) 9051 | -4/Factory | Identified exit to Research 9189 | -4/Factory | Fabricated A-27 Freighter? 9471 | -4/Factory | Entered Research 9471 | -3/Research | Evolved 2 slots: Utility x2 9598 | -3/Research | Lost 6 parts (1n4u1w) 9761 | -3/Research | Spotted B-86 Titan 9885 | -3/Research | Found Prototype Device 9885 | -3/Research | Identified Exp. Thermal Shield 9981 | -3/Research | Discovered new exit (range 9) 9984 | -3/Research | Discovered new exit (range 11) 9985 | -3/Research | Identified exit to Armory 9988 | -3/Research | Identified exit to Research 10032 | -3/Research | Entered Armory 10055 | -3/Armory | Found Unknown Device 10055 | -3/Armory | Identified Antimissile System 10094 | -3/Armory | Spotted B-86 Titan 10201 | -3/Armory | Core integrity fell below 50% 10205 | -3/Armory | Discovered exit to Research (range 4) 10207 | -3/Armory | Entered Research 10207 | -2/Research | Evolved 2 slots: Power x1, Propulsion x1 10232 | -2/Research | Lost 6 parts (1n5u) 10595 | -2/Research | Build established: Mutant 10765 | -2/Research | Self-destructed Last Messages --------------- 10648_ Acquired 7 matter. 10675_ System corrupted: Matter fused (-10). 10690_ System corrupted: FCS attempts to trigger Com. Mass Driver. 10690_ System corrupted: Com. Mass Driver misfires. 10704_ Dropped Quantum Reactor. 10705_ Dropped Hyp. Coil Gun. 10705_ Dropped Imp. Medium Armor Plating. 10706_ Dropped Med. Storage Unit. 10709_ Acquired 28 matter. 10710_ Acquired 19 matter. 10711_ ALERT: Suspicious intruders detected, dispatching Cutter reinforcements to area. 10725_ System corrupted: Component data lost. 10737_ Slug penetrates Earth. 10742_ System corrupted: Matter fused (-10). 10759_ U-05 Engineer builds a Wall. 10765_ C-57 Dissector knocked back. 10765_ U-05 Engineer knocked back. 10765_ U-05 Engineer lays Concrete. 10765_ Knocked back. Map ----- +----------------------------------------------------+ | ???????# # #???????????????????????????? | | ???????# + #???????????????????????????? | | ???????# # #???????????????????????????? | | ???????# # ###########?????????????????? | | ???????# # # #?????????????????? | | ???????# # # #??????????????? | | ???????########## # """" ###### | | ????????????????# # """" + | | ????????????????# + """"" ###### | | ????????????????# # """" #??????????????? | | ????????????????# # #?????????????????? | | ????????????????# # #?????????????????? | | ????????????????# #####/#####?????????????????? | | ????????????????# #???#p#??#########+#######??? | | ????????????????# ##### ##? k #??? | | ????????????????# + #??? | | ????????????????# # #??? | | ????????????????# + #??? | | ????????????????# # """ """ """ ????? | | ????????????????####### # """ """ "???????? | | ???????????????????????# """ """ ????????? | | ??????????????????????? ############# | | ??????????????????????## # | | ??????????????????????# # | | ??????????????????????## cc c # | | ??????????????????????# @ H c # | | ??????????????????????## ########## # | | ???????????????????????#### # # # | | ??????????????????????????## ## u # # | | ????????????????????????????#### + # | | ???????????????????????????????# # # | | ???????????????????????????????# # # | | ???????????????????????????????############## # | | ????????????????????????????????????????????# # | | ????????????????????????????????????????????# # | | ????????????????????????????????????????????# # | | ????????????????????????????????????????????# | | ????????????????????????????????????????????# | | ????????????????????????????????????????????# | | ????????????????????????????????????????????# | | ????????????????????????????????????????????###### | | ??????????????????????????H??????????????????????? | | ?????????????????????????????????????????????????? | | ?????????????????????????????????????????????????? | | ?????????????????????????????????????????????????? | | ?????????????????????????????????????????????????? | | ?????????????????????????????????????????????????? | | ?????????????????????????????????????????????????? | | ?????????????????????????????????????????????????? | | ?????????????????????????????????????????????????? | +----------------------------------------------------+ Best States ------------- Heat Dissipation 108 Energy Generation 21 Energy Capacity 1600 Matter Stores 300 Matter Capacity 300 Sight Range 23 Robot Scan Range 16 Terrain Scan Density 10 Jamming Range 12 Cloak Strength 3 Additional Mass Support 9 EM Shielding 2 Armor Coverage 675 Resistance: EM 25 Core Shielding 20 Weapon Shielding 66 Point Defense Rating 160 Evasion (%) 62 Targeting Accuracy 16 Target Analysis 11 Core Analysis 6 Armor Integrity Analysis 30 Recoil Reduction 2 Matter Filtering 30 Kinecelleration 40 Salvage Targeting 1 Offensive Hacking 12 Defensive Hacking 10 Item Schematics ----------------- None Robot Schematics ------------------ None Fabricated ------------ Y-54 Guardian | x2 | -6/Factory | Preloaded A-27 Freighter | x1 | -4/Factory | Preloaded Alien Tech Used ----------------- None Achievements -------------- None Challenges ------------ None Game ------ Seed CentriumInsulatedDrive Manual? 0 Play Time 01:13:11 Cumulative 344.2 hours Start 2022.06.19 @ 20:38:25 End 2022.06.20 @ 12:12:09 Sessions 5 Manual Loads 0 Difficulty Rogue Special Mode None Game No. 610 Rogue 455 Adventurer 148 Explorer 7 Win Type - Total 12 Types 10/0/1/1/0/0/0/0/0 Lore% 75 Gallery% 87 Achievement% 68 Wizard Run 0 Options --------- ASCII 0 Keyboard 0 Movement Numpad Keybinds 0 Fullscreen 1 Font 18/SmallcapsGlow Map View 76x50 Tactical HUD 1 Map Filters NONE Filters NONE Steam 1 RUN: e8606c4b-a612-4964-b13a-a22cd2a86b9b